{"text_format":"1","workbook":"xlsx","n_sheets":9,"sheets":["Origine","Heures","Ambulanciers","Equipe","Vehicules","Services","Position","Genre","01"],"not_rendered":{"charts":0,"images":0,"macros":1,"external_links":0,"defined_names":11,"comments":0,"pivot_tables":0},"unopened":[],"bounds":{"document_bytes":16777216,"sheet_cells":100000,"rows_first":2000,"rows_last":500,"rows_between":2000,"halvings":0,"cell_chars":16384,"cell_head_chars":4096},"cells_cut":0,"cells_raw":0,"read":"whole","date_system":"1900"}

{"sheet":"Origine","index":0,"n_rows":9,"n_cols":5,"rows_kept":9,"cut":false,"hidden":true,"merged":[[1,4,1,6]]}
[]
[null,null,null,null,"TRANSPORTS SANITAIRES"]
[]
[]
[]
[null,"origine calendrier"]
[]
[null,"Selectionnez le mois",null,7]
[null,"Selectionnez l'année",null,2017]

{"sheet":"Heures","index":1,"n_rows":100,"n_cols":3,"rows_kept":100,"cut":false,"hidden":false,"merged":[]}
["Heures","Code Trame","Horaires"]
[]
[{"$f":"NOW()","v":42956.295637847223},"M3","06:15:00"]
["CNP","J3","08:30:00"]
["00:01:00","J5","09:00:00"]
["00:15:00","J9","10:00:00"]
["00:30:00","S5","13:00:00"]
["00:45:00","N3","20:30:00"]
["01:00:00"]
["01:15:00"]
["01:30:00"]
["01:45:00"]
["02:00:00"]
["02:15:00"]
["02:30:00"]
["02:45:00"]
["03:00:00"]
["03:15:00"]
["03:30:00"]
["03:45:00"]
["04:00:00"]
["04:15:00"]
["04:30:00"]
["04:45:00"]
["05:00:00"]
["05:15:00"]
["05:30:00"]
["05:45:00"]
["06:00:00"]
["06:15:00"]
["06:30:00"]
["06:45:00"]
["07:00:00"]
["07:15:00"]
["07:30:00"]
["07:45:00"]
["08:00:00"]
["08:15:00"]
["08:30:00"]
["08:45:00"]
["09:00:00"]
["09:15:00"]
["09:30:00"]
["09:45:00"]
["10:00:00"]
["10:15:00"]
["10:30:00"]
["10:45:00"]
["11:00:00"]
["11:15:00"]
["11:30:00"]
["11:45:00"]
["12:00:00"]
["12:15:00"]
["12:30:00"]
["12:45:00"]
["13:00:00"]
["13:15:00"]
["13:30:00"]
["13:45:00"]
["14:00:00"]
["14:15:00"]
["14:30:00"]
["14:45:00"]
["15:00:00"]
["15:15:00"]
["15:30:00"]
["15:45:00"]
["16:00:00"]
["16:15:00"]
["16:30:00"]
["16:45:00"]
["17:00:00"]
["17:15:00"]
["17:30:00"]
["17:45:00"]
["18:00:00"]
["18:15:00"]
["18:30:00"]
["18:45:00"]
["19:00:00"]
["19:15:00"]
["19:30:00"]
["19:45:00"]
["20:00:00"]
["20:15:00"]
["20:30:00"]
["20:45:00"]
["21:00:00"]
["21:15:00"]
["21:30:00"]
["21:45:00"]
["22:00:00"]
["22:15:00"]
["22:30:00"]
["22:45:00"]
["23:00:00"]
["23:15:00"]
["23:30:00"]
["23:45:00"]

{"sheet":"Ambulanciers","index":2,"n_rows":20,"n_cols":8,"rows_kept":20,"cut":false,"hidden":false,"merged":[]}
["Ambulanciers","Adresse","CP","Ville","Tel 1","Tel 2","Courriel Perso","Courriel Pro"]
[]
["Agent 1"]
["Agent 2"]
["Agent 3"]
["Agent 4"]
["Agent 5"]
["Agent 6"]
["Agent 7"]
["Agent 8"]
["Agent 9"]
["Agent 10"]
["Agent 11"]
["Agent 12"]
["Agent 13"]
["Agent 14"]
["Agent 15"]
["Agent 16"]
["Agent 17"]
["Agent 18"]

{"sheet":"Equipe","index":3,"n_rows":11,"n_cols":1,"rows_kept":11,"cut":false,"hidden":false,"merged":[]}
["Equipe :"]
[]
["Std"]
[1]
[2]
[3]
[4]
[5]
[85991]
[82990]
[82992]

{"sheet":"Vehicules","index":4,"n_rows":8,"n_cols":6,"rows_kept":8,"cut":false,"hidden":false,"merged":[]}
["Véhicules"]
[null,"Type","Immat :","Date CT :","Proch Ct :","Désinfection"]
["Amb 1","Renault Master"]
["Amb 2","Renault Trafic"]
["Amb 3","Citroën Jumpy"]
["TPMR 1","Renault Master"]
["TPMR 2","Renault Master"]
["VSL","Espace"]

{"sheet":"Services","index":5,"n_rows":115,"n_cols":2,"rows_kept":115,"cut":false,"hidden":false,"merged":[]}
["Services Hosp","N° Poste"]
[]
["A"]
["AB"]
["AC"]
["A"]
["AB"]
["AC"]
["A"]
["AB"]
["AC"]
["A"]
["AB"]
["AC"]
["A"]
["AB"]
["AC"]
["A"]
["AB"]
["AC"]
["A"]
["AB"]
["AC"]
["A"]
["AB"]
["AC"]
["A"]
["AB"]
["AC"]
["A"]
["AB"]
["AC"]
["A"]
["AB"]
["AC"]
["A"]
["AB"]
["AC"]
["A"]
["AB"]
["AC"]
["A"]
["AB"]
["AC"]
["A"]
["AB"]
["AC"]
["A"]
["AB"]
["AC"]
["A"]
["AB"]
["AC"]
["A"]
["AB"]
["AC"]
["A"]
["AB"]
["AC"]
["A"]
["AB"]
["AC"]
["A"]
["AB"]
["AC"]
["A"]
["AB"]
["AC"]
["A"]
["AB"]
["AC"]
["A"]
["AB"]
["AC"]
["A"]
["AB"]
["AC"]
["A"]
["AB"]
["AC"]
["A"]
["AB"]
["AC"]
["A"]
["AB"]
["AC"]
["A"]
["AB"]
["AC"]
["A"]
["AB"]
["AC"]
["A"]
["AB"]
["AC"]
["A"]
["AB"]
["AC"]
["A"]
["AB"]
["AC"]
["A"]
["AB"]
["AC"]
["A"]
["AB"]
["AC"]
["A"]
["AB"]
["AC"]
["A"]
["AB"]
["AC"]
["A"]
["AB"]

{"sheet":"Position","index":6,"n_rows":6,"n_cols":1,"rows_kept":6,"cut":false,"hidden":false,"merged":[]}
["Position"]
[]
["Allongé"]
["Fauteuil"]
["Faut. Perso"]
["Marche"]

{"sheet":"Genre","index":7,"n_rows":6,"n_cols":1,"rows_kept":6,"cut":false,"hidden":false,"merged":[]}
["Genre"]
[]
["Mr."]
["Mme"]
["Mlle."]
["Enft."]

{"sheet":"01","index":8,"n_rows":100,"n_cols":14,"rows_kept":100,"cut":false,"hidden":false,"merged":[[0,0,0,3],[11,13,12,13],[1,11,1,12],[0,8,0,9],[10,1,10,3],[11,0,11,2],[7,1,7,3],[9,1,9,3],[11,9,11,11],[8,1,8,3],[3,0,6,3],[11,6,12,6],[11,7,12,7],[1,0,2,2],[1,3,2,3],[11,8,12,8],[11,3,12,3],[11,4,12,4],[11,5,12,5],[11,12,12,12]]}
[{"$f":"DATE(Origine!D9,Origine!D8,1)","v":"2017-07-01"},null,null,null,"Présence Agents","Code Trame","Personnel ","Radio / Tel","Informations Diverses"]
[{"$f":"NOW()","v":42956.295637847223},null,null,null,false,"M3",null,1,null,null,null,"Tableau de Bord"]
[null,null,null,null,false,"M3",null,2]
["Service des Transports Sanitaires",null,null,null,false,"J3",null,"Std"]
[null,null,null,null,false,"J5",null,3,null,null,null,"N° Ligne :",19]
[null,null,null,null,false,"J5",null,4]
[null,null,null,null,false,"J9",null,85991]
["UF :","1100",null,null,false,"S5",null,5]
["Tel :","05 ",null,null,false,"S5",null,5]
["Fax :","05 49 78 -- --",null,null,false,"N3",null,82992]
[null,null,null,null,false,"N3",null,82990]
["ALLER",null,null,"Service origine","N° Chambre","Sexe","Patient Transporté                  Nom Prénom ","Type transport","Service destinataire","RETOUR",null,null,"Observations","Contrôle activité"]
["hh:mm RDV","Equipage PEC","hh:mm Transm°",null,null,null,null,null,null,"hh:mm RDV","Equipage PEC","hh:mm Transm°"]
["06:15:00",null,"06:15:00",null,null,null,null,"Faut. Perso",null,null,null,null,null,{"$f":"IF(COUNTIF($A$14:$A$100,$A$14:$A$100)>=3,\"3 RDV ou +\",\"\")","v":""}]
["07:00:00",1,"07:00:00","X",1234,"Mr.","MACHIN","Allongé","Y","08:00:00",1,"08:00:00","TRSP All + Ret",""]
["09:00:00",2,"09:00:00","Y",5678,"Mr.","BIDULE","Fauteuil","X",null,null,null,"TRSP Aller Seul Pas De Ret",""]
["12:00:00",2,null,null,null,null,"Après Midi",null,null,null,null,null,null,""]
["13:00:00",3,"13:00:00","X",null,"Mme","Truc",null,"X","14:30:00",2,"14:30:00",null,""]
["13:00:00",5,"13:00:00",null,null,null,null,null,null,null,null,null,null,""]
[null,null,null,"A",null,null,null,null,null,null,null,null,null,""]
[null,null,null,null,null,null,null,null,null,null,null,null,null,""]
[null,null,null,null,null,null,null,null,null,null,null,null,null,""]
[null,null,null,null,null,null,null,null,null,null,null,null,null,""]
[null,null,null,null,null,null,null,null,null,null,null,null,null,""]
[null,null,null,null,null,null,null,null,null,null,null,null,null,""]
[null,null,null,null,null,null,null,null,null,null,null,null,null,""]
[null,null,null,null,null,null,null,null,null,null,null,null,null,""]
[null,null,null,null,null,null,null,null,null,null,null,null,null,""]
[null,null,null,null,null,null,null,null,null,null,null,null,null,""]
[null,null,null,null,null,null,null,null,null,null,null,null,null,""]
[null,null,null,null,null,null,null,null,null,null,null,null,null,""]
[null,null,null,null,null,null,null,null,null,null,null,null,null,""]
[null,null,null,null,null,null,null,null,null,null,null,null,null,""]
[null,null,null,null,null,null,null,null,null,null,null,null,null,""]
[null,null,null,null,null,null,null,null,null,null,null,null,null,""]
[null,null,null,null,null,null,null,null,null,null,null,null,null,""]
[null,null,null,null,null,null,null,null,null,null,null,null,null,""]
[null,null,null,null,null,null,null,null,null,null,null,null,null,""]
[null,null,null,null,null,null,null,null,null,null,null,null,null,""]
[null,null,null,null,null,null,null,null,null,null,null,null,null,""]
[null,null,null,null,null,null,null,null,null,null,null,null,null,""]
[null,null,null,null,null,null,null,null,null,null,null,null,null,""]
[null,null,null,null,null,null,null,null,null,null,null,null,null,""]
[null,null,null,null,null,null,null,null,null,null,null,null,null,""]
[null,null,null,null,null,null,null,null,null,null,null,null,null,""]
[null,null,null,null,null,null,null,null,null,null,null,null,null,{"$f":"IF(COUNTIF($A$14:$A$100,$A$14:$A$100)>=3,\"3 RDV ou +\",\"\")","v":""}]
[null,null,null,null,null,null,null,null,null,null,null,null,null,""]
[null,null,null,null,null,null,null,null,null,null,null,null,null,""]
[null,null,null,null,null,null,null,null,null,null,null,null,null,""]
[null,null,null,null,null,null,null,null,null,null,null,null,null,""]
[null,null,null,null,null,null,null,null,null,null,null,null,null,""]
[null,null,null,null,null,null,null,null,null,null,null,null,null,""]
[null,null,null,null,null,null,null,null,null,null,null,null,null,""]
[null,null,null,null,null,null,null,null,null,null,null,null,null,""]
[null,null,null,null,null,null,null,null,null,null,null,null,null,""]
[null,null,null,null,null,null,null,null,null,null,null,null,null,""]
[null,null,null,null,null,null,null,null,null,null,null,null,null,""]
[null,null,null,null,null,null,null,null,null,null,null,null,null,""]
[null,null,null,null,null,null,null,null,null,null,null,null,null,""]
[null,null,null,null,null,null,null,null,null,null,null,null,null,""]
[null,null,null,null,null,null,null,null,null,null,null,null,null,""]
[null,null,null,null,null,null,null,null,null,null,null,null,null,""]
[null,null,null,null,null,null,null,null,null,null,null,null,null,""]
[null,null,null,null,null,null,null,null,null,null,null,null,null,""]
[null,null,null,null,null,null,null,null,null,null,null,null,null,""]
[null,null,null,null,null,null,null,null,null,null,null,null,null,""]
[null,null,null,null,null,null,null,null,null,null,null,null,null,""]
[null,null,null,null,null,null,null,null,null,null,null,null,null,""]
[null,null,null,null,null,null,null,null,null,null,null,null,null,""]
[null,null,null,null,null,null,null,null,null,null,null,null,null,""]
[null,null,null,null,null,null,null,null,null,null,null,null,null,""]
[null,null,null,null,null,null,null,null,null,null,null,null,null,""]
[null,null,null,null,null,null,null,null,null,null,null,null,null,""]
[null,null,null,null,null,null,null,null,null,null,null,null,null,""]
[null,null,null,null,null,null,null,null,null,null,null,null,null,""]
[null,null,null,null,null,null,null,null,null,null,null,null,null,""]
[null,null,null,null,null,null,null,null,null,null,null,null,null,""]
[null,null,null,null,null,null,null,null,null,null,null,null,null,{"$f":"IF(COUNTIF($A$14:$A$100,$A$14:$A$100)>=3,\"3 RDV ou +\",\"\")","v":""}]
[null,null,null,null,null,null,null,null,null,null,null,null,null,""]
[null,null,null,null,null,null,null,null,null,null,null,null,null,""]
[null,null,null,null,null,null,null,null,null,null,null,null,null,""]
[null,null,null,null,null,null,null,null,null,null,null,null,null,""]
[null,null,null,null,null,null,null,null,null,null,null,null,null,""]
[null,null,null,null,null,null,null,null,null,null,null,null,null,""]
[null,null,null,null,null,null,null,null,null,null,null,null,null,""]
[null,null,null,null,null,null,null,null,null,null,null,null,null,""]
[null,null,null,null,null,null,null,null,null,null,null,null,null,""]
[null,null,null,null,null,null,null,null,null,null,null,null,null,""]
[null,null,null,null,null,null,null,null,null,null,null,null,null,""]
[null,null,null,null,null,null,null,null,null,null,null,null,null,""]
[null,null,null,null,null,null,null,null,null,null,null,null,null,""]
[null,null,null,null,null,null,null,null,null,null,null,null,null,""]
[null,null,null,null,null,null,null,null,null,null,null,null,null,""]
[null,null,null,null,null,null,null,null,null,null,null,null,null,""]
[null,null,null,null,null,null,null,null,null,null,null,null,null,""]
[null,null,null,null,null,null,null,null,null,null,null,null,null,""]
[null,null,null,null,null,null,null,null,null,null,null,null,null,""]
[null,null,null,null,null,null,null,null,null,null,null,null,null,""]
[null,null,null,null,null,null,null,null,null,null,null,null,null,""]
[null,null,null,null,null,null,null,null,null,null,null,null,null,""]